[Event "Early-Titled-Tuesday-Blitz-February-20-2024"]
[Site "Chess.com"]
[Date "2024.02.20"]
[Round "8"]
[White "mjelcic"]
[Black "Muracle"]
[Result "1-0"]
[WhiteElo "2226"]
[BlackElo "2463"]
[TimeControl "180+1"]
[EndTime "9:29:57 PST"]
[Termination "mjelcic won by checkmate"]

1. d4 {[%clk 0:02:59.5]} 1... Nf6 {[%clk 0:02:59.3]} 2. c4 {[%clk 0:02:51.2]}
2... e6 {[%clk 0:02:59.7]} 3. Nc3 {[%clk 0:02:47]} 3... Bb4 {[%clk 0:03:00.1]}
4. Bd2 {[%clk 0:02:42]} 4... O-O {[%clk 0:02:57.8]} 5. Nf3 {[%clk 0:02:38.9]}
5... d5 {[%clk 0:02:58.1]} 6. e3 {[%clk 0:02:31.9]} 6... b6 {[%clk 0:02:56.4]}
7. cxd5 {[%clk 0:02:12.7]} 7... exd5 {[%clk 0:02:53.5]} 8. Be2 {[%clk
0:02:12.2]} 8... c6 {[%clk 0:02:51.6]} 9. O-O {[%clk 0:02:03.6]} 9... Bd6 {[%clk
0:02:52]} 10. Rc1 {[%clk 0:01:55.8]} 10... Nbd7 {[%clk 0:02:46.2]} 11. a3 {[%clk
0:01:49.9]} 11... Bb7 {[%clk 0:02:42.5]} 12. Bd3 {[%clk 0:00:41.2]} 12... h6
{[%clk 0:02:41.5]} 13. Bb1 {[%clk 0:00:20]} 13... a5 {[%clk 0:02:38.2]} 14. Qc2
{[%clk 0:00:20]} 14... Qe7 {[%clk 0:02:37.7]} 15. Rfe1 {[%clk 0:00:19.1]} 15...
b5 {[%clk 0:02:37.5]} 16. e4 {[%clk 0:00:18.8]} 16... b4 {[%clk 0:01:15]} 17. e5
{[%clk 0:00:18.1]} 17... bxc3 {[%clk 0:00:44.6]} 18. exf6 {[%clk 0:00:16.6]}
18... Nxf6 {[%clk 0:00:45.5]} 19. Rxe7 {[%clk 0:00:15.7]} 19... cxd2 {[%clk
0:00:46.2]} 20. Rxb7 {[%clk 0:00:12.1]} 20... dxc1=Q+ {[%clk 0:00:45.9]} 21.
Qxc1 {[%clk 0:00:12.4]} 21... Rab8 {[%clk 0:00:44.2]} 22. Rxb8 {[%clk
0:00:12.3]} 22... Rxb8 {[%clk 0:00:45.1]} 23. Bc2 {[%clk 0:00:11.7]} 23... c5
{[%clk 0:00:41.8]} 24. dxc5 {[%clk 0:00:11]} 24... Bxc5 {[%clk 0:00:42.7]} 25.
g3 {[%clk 0:00:08.6]} 25... Ba7 {[%clk 0:00:40.7]} 26. Bf5 {[%clk 0:00:08.4]}
26... Re8 {[%clk 0:00:36.4]} 27. Qc6 {[%clk 0:00:08.3]} 27... Ne4 {[%clk
0:00:22.4]} 28. Qxe8# {[%clk 0:00:06.9]} 1-0

[Event "Early-Titled-Tuesday-Blitz-February-20-2024"]
[Site "Chess.com"]
[Date "2024.02.20"]
[Round "8"]
[White "Hudijegszid"]
[Black "SaiAgni_98"]
[Result "0-1"]
[WhiteElo "2357"]
[BlackElo "2574"]
[TimeControl "180+1"]
[EndTime "9:30:02 PST"]
[Termination "SaiAgni_98 won by resignation"]

1. Nf3 {[%clk 0:03:00.9]} 1... Nf6 {[%clk 0:02:59.3]} 2. g3 {[%clk 0:03:00.9]}
2... d6 {[%clk 0:02:53.6]} 3. d4 {[%clk 0:02:59.6]} 3... Nbd7 {[%clk 0:02:53.4]}
4. Bg2 {[%clk 0:02:58]} 4... e5 {[%clk 0:02:53.8]} 5. O-O {[%clk 0:02:57.9]}
5... Be7 {[%clk 0:02:54]} 6. c4 {[%clk 0:02:55.8]} 6... O-O {[%clk 0:02:54.2]}
7. Nc3 {[%clk 0:02:55.6]} 7... c6 {[%clk 0:02:54.6]} 8. b3 {[%clk 0:02:54.9]}
8... a5 {[%clk 0:02:50]} 9. Bb2 {[%clk 0:02:54.7]} 9... Re8 {[%clk 0:02:46.4]}
10. Qc2 {[%clk 0:02:53.1]} 10... Qc7 {[%clk 0:02:43.2]} 11. Rad1 {[%clk
0:02:51.5]} 11... exd4 {[%clk 0:02:41.9]} 12. Nxd4 {[%clk 0:02:51.2]} 12... Nc5
{[%clk 0:02:42.8]} 13. Nf5 {[%clk 0:02:31.6]} 13... Bf8 {[%clk 0:02:37.4]} 14.
Rd2 {[%clk 0:02:18.9]} 14... Be6 {[%clk 0:02:05.9]} 15. Rfd1 {[%clk 0:02:18.2]}
15... Rad8 {[%clk 0:02:06.1]} 16. Ba3 {[%clk 0:01:51.1]} 16... g6 {[%clk
0:01:58.1]} 17. Nd4 {[%clk 0:01:26.1]} 17... Bc8 {[%clk 0:01:58.2]} 18. e4
{[%clk 0:01:22.2]} 18... Bh6 {[%clk 0:01:58.1]} 19. f4 {[%clk 0:01:21.8]} 19...
Na6 {[%clk 0:01:50.4]} 20. Ncb5 {[%clk 0:01:09.1]} 20... cxb5 {[%clk 0:01:44.7]}
21. Nxb5 {[%clk 0:01:06.9]} 21... Qb6+ {[%clk 0:01:44.5]} 22. Kh1 {[%clk
0:01:07.4]} 22... Ng4 {[%clk 0:01:36.7]} 23. Nxd6 {[%clk 0:00:58.9]} 23... Ne3
{[%clk 0:01:20.8]} 24. Qc1 {[%clk 0:00:39.7]} 24... Nxd1 {[%clk 0:01:09.4]} 25.
Qxd1 {[%clk 0:00:32]} 25... Nb4 {[%clk 0:00:51.2]} 26. Nxe8 {[%clk 0:00:28.2]}
26... Rxe8 {[%clk 0:00:52.1]} 27. e5 {[%clk 0:00:25.8]} 27... Bf8 {[%clk
0:00:46.9]} 28. Bb2 {[%clk 0:00:25.6]} 28... h5 {[%clk 0:00:44.3]} 29. h4 {[%clk
0:00:20.7]} 29... Bg4 {[%clk 0:00:43.9]} 30. Qe1 {[%clk 0:00:18]} 30... Rd8
{[%clk 0:00:42.4]} 31. a3 {[%clk 0:00:16.1]} 31... Nd3 {[%clk 0:00:37.5]} 32.
Qb1 {[%clk 0:00:15.4]} 32... Nf2+ {[%clk 0:00:35.9]} 33. Rxf2 {[%clk 0:00:15.1]}
33... Qxf2 {[%clk 0:00:36.7]} 34. Bc3 {[%clk 0:00:10.3]} 34... Rd1+ {[%clk
0:00:36.4]} 0-1

[Event "Early-Titled-Tuesday-Blitz-February-20-2024"]
[Site "Chess.com"]
[Date "2024.02.20"]
[Round "8"]
[White "angelgab3"]
[Black "platy3"]
[Result "0-1"]
[WhiteElo "2764"]
[BlackElo "2956"]
[TimeControl "180+1"]
[EndTime "9:30:04 PST"]
[Termination "platy3 won by resignation"]

1. e4 {[%clk 0:03:00.9]} 1... c5 {[%clk 0:02:59.4]} 2. Nf3 {[%clk 0:03:01.1]}
2... e6 {[%clk 0:02:59]} 3. g3 {[%clk 0:03:00.5]} 3... Nc6 {[%clk 0:02:58.5]} 4.
Bg2 {[%clk 0:03:01]} 4... Nf6 {[%clk 0:02:58.9]} 5. Qe2 {[%clk 0:03:00.2]} 5...
e5 {[%clk 0:02:59.3]} 6. O-O {[%clk 0:03:00.8]} 6... d6 {[%clk 0:02:58.9]} 7. c3
{[%clk 0:03:00.5]} 7... Be7 {[%clk 0:02:59.2]} 8. Rd1 {[%clk 0:03:01.1]} 8...
Bg4 {[%clk 0:02:46.3]} 9. h3 {[%clk 0:03:00.8]} 9... Bh5 {[%clk 0:02:46.2]} 10.
Na3 {[%clk 0:03:01]} 10... O-O {[%clk 0:02:45.1]} 11. Nc2 {[%clk 0:03:00.8]}
11... Rc8 {[%clk 0:02:42.8]} 12. d4 {[%clk 0:02:45.4]} 12... cxd4 {[%clk
0:02:38.2]} 13. cxd4 {[%clk 0:02:46.3]} 13... Qb6 {[%clk 0:02:32.5]} 14. b3
{[%clk 0:02:33.7]} 14... exd4 {[%clk 0:01:54.5]} 15. Bb2 {[%clk 0:02:32.3]}
15... Rfe8 {[%clk 0:01:24.7]} 16. g4 {[%clk 0:01:30.3]} 16... Bg6 {[%clk
0:01:21.8]} 17. Nfxd4 {[%clk 0:01:12.7]} 17... d5 {[%clk 0:01:20.6]} 18. Nxc6
{[%clk 0:00:52.4]} 18... bxc6 {[%clk 0:01:18.8]} 19. e5 {[%clk 0:00:47]} 19...
Ne4 {[%clk 0:01:18.8]} 20. Ne3 {[%clk 0:00:38.5]} 20... Bg5 {[%clk 0:01:15.3]}
21. Rac1 {[%clk 0:00:35.9]} 21... h6 {[%clk 0:01:04.9]} 22. Bd4 {[%clk
0:00:35.8]} 22... Qb4 {[%clk 0:00:59.5]} 23. Qe1 {[%clk 0:00:29.9]} 23... Qxe1+
{[%clk 0:00:33.2]} 24. Rxe1 {[%clk 0:00:30.8]} 24... Bf4 {[%clk 0:00:34.1]} 25.
Bxa7 {[%clk 0:00:23.5]} 25... Bxe5 {[%clk 0:00:32]} 26. Nf5 {[%clk 0:00:23.4]}
26... Bf4 {[%clk 0:00:26.4]} 27. Rc2 {[%clk 0:00:18.5]} 27... Nd6 {[%clk
0:00:21.4]} 28. Rxe8+ {[%clk 0:00:17.7]} 28... Rxe8 {[%clk 0:00:22.2]} 29. Nxd6
{[%clk 0:00:18.4]} 29... Re1+ {[%clk 0:00:21.4]} 30. Bf1 {[%clk 0:00:14.2]}
30... Bxc2 {[%clk 0:00:21.3]} 0-1

[Event "Early-Titled-Tuesday-Blitz-February-20-2024"]
[Site "Chess.com"]
[Date "2024.02.20"]
[Round "8"]
[White "DvaHrasta"]
[Black "fabianvivasz"]
[Result "1-0"]
[WhiteElo "2521"]
[BlackElo "2380"]
[TimeControl "180+1"]
[EndTime "9:30:04 PST"]
[Termination "DvaHrasta won by resignation"]

1. c4 {[%clk 0:03:00.9]} 1... Nf6 {[%clk 0:02:50.6]} 2. g3 {[%clk 0:03:00.9]}
2... c5 {[%clk 0:02:47.6]} 3. Bg2 {[%clk 0:03:00.7]} 3... d5 {[%clk 0:02:48.3]}
4. cxd5 {[%clk 0:02:59.9]} 4... Nxd5 {[%clk 0:02:49.2]} 5. Nc3 {[%clk
0:02:59.9]} 5... Nc7 {[%clk 0:02:49.9]} 6. Nf3 {[%clk 0:02:58.9]} 6... Nc6
{[%clk 0:02:50.5]} 7. O-O {[%clk 0:02:59]} 7... e5 {[%clk 0:02:51.1]} 8. d3
{[%clk 0:02:59.4]} 8... Bd7 {[%clk 0:02:49.3]} 9. Nd2 {[%clk 0:02:59.5]} 9...
Be7 {[%clk 0:02:48.5]} 10. Nc4 {[%clk 0:02:59.5]} 10... f6 {[%clk 0:02:48.9]}
11. f4 {[%clk 0:02:59.5]} 11... b5 {[%clk 0:02:39.1]} 12. Ne3 {[%clk 0:02:58.7]}
12... exf4 {[%clk 0:02:39.5]} 13. gxf4 {[%clk 0:02:57.9]} 13... O-O {[%clk
0:02:31.4]} 14. Ncd5 {[%clk 0:02:54.1]} 14... Rb8 {[%clk 0:02:26.2]} 15. Nxc7
{[%clk 0:02:50.3]} 15... Qxc7 {[%clk 0:02:26.4]} 16. Nd5 {[%clk 0:02:49.5]}
16... Qd8 {[%clk 0:02:19.1]} 17. e4 {[%clk 0:02:48.5]} 17... Be6 {[%clk
0:02:02.9]} 18. Be3 {[%clk 0:02:45.8]} 18... Bxd5 {[%clk 0:02:00.4]} 19. exd5
{[%clk 0:02:45.9]} 19... Nd4 {[%clk 0:01:37.6]} 20. Bxd4 {[%clk 0:02:45.8]}
20... cxd4 {[%clk 0:01:38.5]} 21. Rc1 {[%clk 0:02:44.5]} 21... Rc8 {[%clk
0:01:30.6]} 22. Qe2 {[%clk 0:02:40]} 22... Qd6 {[%clk 0:01:21.1]} 23. Bh3 {[%clk
0:02:31.1]} 23... Rxc1 {[%clk 0:01:16.3]} 24. Rxc1 {[%clk 0:02:31]} 24... Qxf4
{[%clk 0:01:12]} 25. Rf1 {[%clk 0:02:16.6]} 25... Qe3+ {[%clk 0:00:35.3]} 26.
Qxe3 {[%clk 0:02:14.8]} 26... dxe3 {[%clk 0:00:36.2]} 27. d4 {[%clk 0:02:09.1]}
27... Bb4 {[%clk 0:00:24.8]} 28. Bg4 {[%clk 0:02:01.8]} 28... f5 {[%clk
0:00:17]} 29. Be2 {[%clk 0:01:55.3]} 29... f4 {[%clk 0:00:16.9]} 30. Kg2 {[%clk
0:01:50.9]} 30... g5 {[%clk 0:00:12.2]} 31. h3 {[%clk 0:01:46.3]} 31... Kg7
{[%clk 0:00:11.8]} 32. Bxb5 {[%clk 0:01:43.6]} 32... Rc8 {[%clk 0:00:10.1]} 33.
a3 {[%clk 0:01:38.8]} 33... Rc2+ {[%clk 0:00:09.9]} 34. Kf3 {[%clk 0:01:38.4]}
34... Bd6 {[%clk 0:00:09.3]} 35. b4 {[%clk 0:01:32.5]} 35... Kf6 {[%clk
0:00:09.5]} 36. Bd7 {[%clk 0:01:29.3]} 36... h5 {[%clk 0:00:09.7]} 37. Ke4
{[%clk 0:01:19.7]} 37... e2 {[%clk 0:00:09.1]} 38. Re1 {[%clk 0:01:16.7]} 38...
a5 {[%clk 0:00:09.6]} 39. Kd3 {[%clk 0:01:15.1]} 39... axb4 {[%clk 0:00:09.6]}
40. Kxc2 {[%clk 0:01:14.1]} 40... bxa3 {[%clk 0:00:09.3]} 41. Rxe2 {[%clk
0:01:13.6]} 41... Bb4 {[%clk 0:00:07]} 42. Kb3 {[%clk 0:01:12.9]} 42... Bf8
{[%clk 0:00:03.7]} 43. d6 {[%clk 0:01:08]} 43... Bxd6 {[%clk 0:00:01.6]} 44.
Re6+ {[%clk 0:01:07.2]} 44... Kf7 {[%clk 0:00:02.2]} 45. Rxd6 {[%clk 0:01:07.3]}
45... f3 {[%clk 0:00:02.9]} 46. Bc6 {[%clk 0:01:06.1]} 46... f2 {[%clk
0:00:01.5]} 47. Bg2 {[%clk 0:01:05.9]} 47... g4 {[%clk 0:00:02.4]} 48. hxg4
{[%clk 0:01:05.9]} 48... hxg4 {[%clk 0:00:03.3]} 49. Kxa3 {[%clk 0:01:06.1]}
49... Ke7 {[%clk 0:00:03.4]} 1-0

[Event "Early-Titled-Tuesday-Blitz-February-20-2024"]
[Site "Chess.com"]
[Date "2024.02.20"]
[Round "8"]
[White "manipun1"]
[Black "ajedrez-facil"]
[Result "0-1"]
[WhiteElo "2389"]
[BlackElo "2256"]
[TimeControl "180+1"]
[EndTime "9:30:06 PST"]
[Termination "ajedrez-facil won by resignation"]

1. e4 {[%clk 0:03:00.9]} 1... c5 {[%clk 0:02:59.6]} 2. Nf3 {[%clk 0:03:00.1]}
2... d6 {[%clk 0:02:59.8]} 3. Bb5+ {[%clk 0:03:00.3]} 3... Nd7 {[%clk
0:02:59.5]} 4. O-O {[%clk 0:02:59.7]} 4... a6 {[%clk 0:02:59.5]} 5. Bxd7+ {[%clk
0:02:58]} 5... Bxd7 {[%clk 0:03:00.4]} 6. d4 {[%clk 0:02:58.8]} 6... cxd4 {[%clk
0:03:00.5]} 7. Qxd4 {[%clk 0:02:59.5]} 7... Nf6 {[%clk 0:03:01.1]} 8. a4 {[%clk
0:02:55.8]} 8... g6 {[%clk 0:03:00.4]} 9. e5 {[%clk 0:02:52.9]} 9... dxe5 {[%clk
0:03:00]} 10. Nxe5 {[%clk 0:02:53.8]} 10... Be6 {[%clk 0:02:51.6]} 11. Qh4
{[%clk 0:02:37.7]} 11... Bg7 {[%clk 0:02:50.9]} 12. Nc3 {[%clk 0:02:29.3]} 12...
Qc7 {[%clk 0:02:48.3]} 13. Nf3 {[%clk 0:02:13.7]} 13... h5 {[%clk 0:02:34.2]}
14. Bf4 {[%clk 0:02:11.4]} 14... Qc4 {[%clk 0:02:32.2]} 15. Ng5 {[%clk
0:02:01.9]} 15... Bg4 {[%clk 0:02:15.9]} 16. Be3 {[%clk 0:01:51.9]} 16... Be2
{[%clk 0:02:05.2]} 17. Qxc4 {[%clk 0:01:42.3]} 17... Bxc4 {[%clk 0:02:06.1]} 18.
Rad1 {[%clk 0:01:37.2]} 18... Rc8 {[%clk 0:02:04.8]} 19. Rfe1 {[%clk 0:01:36.8]}
19... O-O {[%clk 0:02:01]} 20. Bb6 {[%clk 0:01:32.9]} 20... e6 {[%clk
0:01:53.7]} 21. a5 {[%clk 0:01:31.5]} 21... Nd5 {[%clk 0:01:50.5]} 22. Bd4
{[%clk 0:01:28.9]} 22... Nxc3 {[%clk 0:01:45.2]} 23. bxc3 {[%clk 0:01:25]} 23...
Bd5 {[%clk 0:01:42.7]} 24. f3 {[%clk 0:01:18.6]} 24... Rc4 {[%clk 0:01:42.3]}
25. Kf2 {[%clk 0:01:13.6]} 25... Rfc8 {[%clk 0:01:41.7]} 26. Rd2 {[%clk
0:00:43]} 26... Bxd4+ {[%clk 0:01:40.1]} 27. cxd4 {[%clk 0:00:43.7]} 27... Rxc2
{[%clk 0:01:40.2]} 28. Ree2 {[%clk 0:00:40.1]} 28... R2c4 {[%clk 0:01:34.6]} 29.
Nh3 {[%clk 0:00:38.5]} 29... Ra4 {[%clk 0:01:32.7]} 30. Nf4 {[%clk 0:00:37.4]}
30... Rxa5 {[%clk 0:01:32.7]} 31. Rb2 {[%clk 0:00:34.6]} 31... b5 {[%clk
0:01:29.1]} 32. Nxd5 {[%clk 0:00:32.1]} 32... exd5 {[%clk 0:01:30]} 33. Re7
{[%clk 0:00:32.7]} 33... Ra4 {[%clk 0:01:29.3]} 34. Ra7 {[%clk 0:00:20.6]} 34...
Rcc4 {[%clk 0:01:27.7]} 35. Re2 {[%clk 0:00:19]} 35... Rxd4 {[%clk 0:01:25.8]}
36. Re8+ {[%clk 0:00:19.4]} 36... Kg7 {[%clk 0:01:26.2]} 37. Ree7 {[%clk
0:00:20.3]} 37... Rf4 {[%clk 0:01:26.7]} 38. Kg3 {[%clk 0:00:19]} 38... Rf5
{[%clk 0:01:25.5]} 39. h4 {[%clk 0:00:15.5]} 39... Ra2 {[%clk 0:01:22.2]} 40.
Red7 {[%clk 0:00:12.9]} 40... a5 {[%clk 0:01:21.7]} 41. Rdb7 {[%clk 0:00:11]}
41... b4 {[%clk 0:01:21.9]} 42. Rb5 {[%clk 0:00:10.9]} 42... d4 {[%clk
0:01:18.9]} 43. Rxf5 {[%clk 0:00:08.4]} 43... gxf5 {[%clk 0:01:19.8]} 44. Rd7
{[%clk 0:00:05.3]} 44... b3 {[%clk 0:01:16.6]} 45. Rxd4 {[%clk 0:00:04.8]} 45...
b2 {[%clk 0:01:16.8]} 46. Rd1 {[%clk 0:00:04.3]} 46... Ra1 {[%clk 0:01:17]} 0-1

[Event "Early-Titled-Tuesday-Blitz-February-20-2024"]
[Site "Chess.com"]
[Date "2024.02.20"]
[Round "8"]
[White "BillCoe"]
[Black "Al_Shima"]
[Result "0-1"]
[WhiteElo "2144"]
[BlackElo "2384"]
[TimeControl "180+1"]
[EndTime "9:30:10 PST"]
[Termination "Al_Shima won by resignation"]

1. e4 {[%clk 0:03:00.9]} 1... c6 {[%clk 0:03:00.3]} 2. d4 {[%clk 0:03:00.2]}
2... d5 {[%clk 0:03:01.2]} 3. Nc3 {[%clk 0:03:00.2]} 3... dxe4 {[%clk
0:03:01.4]} 4. Nxe4 {[%clk 0:03:01.1]} 4... Nf6 {[%clk 0:03:02.1]} 5. Nxf6+
{[%clk 0:03:00.2]} 5... exf6 {[%clk 0:03:03]} 6. Nf3 {[%clk 0:02:59.8]} 6... Bd6
{[%clk 0:03:03.4]} 7. h3 {[%clk 0:02:59.9]} 7... O-O {[%clk 0:03:03.5]} 8. Bd3
{[%clk 0:03:00]} 8... Re8+ {[%clk 0:03:03.7]} 9. Be3 {[%clk 0:02:59.5]} 9... Na6
{[%clk 0:03:04.3]} 10. c3 {[%clk 0:02:57.9]} 10... Nc7 {[%clk 0:03:04.1]} 11.
O-O {[%clk 0:02:57.6]} 11... Nd5 {[%clk 0:03:04.5]} 12. Bd2 {[%clk 0:02:54.9]}
12... Be6 {[%clk 0:03:01.7]} 13. Qc2 {[%clk 0:02:53.9]} 13... Qd7 {[%clk
0:03:01.8]} 14. Rfe1 {[%clk 0:02:46.7]} 14... h6 {[%clk 0:02:57]} 15. Rad1
{[%clk 0:02:40.3]} 15... Re7 {[%clk 0:02:52.1]} 16. Bf1 {[%clk 0:02:39.2]} 16...
Rae8 {[%clk 0:02:47.6]} 17. a3 {[%clk 0:02:39]} 17... Nf4 {[%clk 0:02:39.2]} 18.
Be3 {[%clk 0:02:32.3]} 18... Bd5 {[%clk 0:02:13.9]} 19. Bxf4 {[%clk 0:02:23.2]}
19... Bxf4 {[%clk 0:02:11.9]} 20. Rxe7 {[%clk 0:02:21.7]} 20... Rxe7 {[%clk
0:02:11.8]} 21. Be2 {[%clk 0:02:05.8]} 21... Qe6 {[%clk 0:02:02.8]} 22. Bf1
{[%clk 0:01:54.6]} 22... Bb3 {[%clk 0:01:55.6]} 23. Qd3 {[%clk 0:01:40.6]} 23...
Bxd1 {[%clk 0:01:54.1]} 24. Qxd1 {[%clk 0:01:41.5]} 24... g6 {[%clk 0:01:49.5]}
25. Qa4 {[%clk 0:01:41]} 25... b5 {[%clk 0:01:26.3]} 26. Qb4 {[%clk 0:01:35.5]}
26... Bc7 {[%clk 0:01:22.3]} 27. d5 {[%clk 0:01:22.9]} 27... cxd5 {[%clk
0:01:17.1]} 28. Qxb5 {[%clk 0:01:22]} 28... Bb6 {[%clk 0:01:14.8]} 29. a4 {[%clk
0:01:16.4]} 29... Bc7 {[%clk 0:00:49.4]} 30. Nd4 {[%clk 0:01:07.3]} 30... Qd6
{[%clk 0:00:46]} 31. Nf3 {[%clk 0:00:56]} 31... Bb6 {[%clk 0:00:42.6]} 32. a5
{[%clk 0:00:52.5]} 32... Bc7 {[%clk 0:00:40]} 33. b4 {[%clk 0:00:50.8]} 33...
Qe6 {[%clk 0:00:37.5]} 34. Nd4 {[%clk 0:00:42.3]} 34... Qe5 {[%clk 0:00:34.9]}
35. Nf3 {[%clk 0:00:41.8]} 35... Qe4 {[%clk 0:00:34.1]} 36. Qc5 {[%clk
0:00:38.5]} 36... h5 {[%clk 0:00:26.5]} 37. Bd3 {[%clk 0:00:34.5]} 37... Qe6
{[%clk 0:00:25.9]} 38. Kf1 {[%clk 0:00:29.4]} 38... Be5 {[%clk 0:00:22.8]} 39.
Nd4 {[%clk 0:00:26.6]} 39... Bxd4 {[%clk 0:00:20.1]} 0-1

[Event "Early-Titled-Tuesday-Blitz-February-20-2024"]
[Site "Chess.com"]
[Date "2024.02.20"]
[Round "8"]
[White "David_George21"]
[Black "Lucky_Puncher"]
[Result "1-0"]
[WhiteElo "2344"]
[BlackElo "2495"]
[TimeControl "180+1"]
[EndTime "9:30:11 PST"]
[Termination "David_George21 won on time"]

1. e4 {[%clk 0:03:00.9]} 1... c5 {[%clk 0:02:26.8]} 2. Nf3 {[%clk 0:03:00.3]}
2... d6 {[%clk 0:02:26.6]} 3. d4 {[%clk 0:03:00.2]} 3... cxd4 {[%clk 0:02:27]}
4. Nxd4 {[%clk 0:03:01.1]} 4... Nf6 {[%clk 0:02:27.2]} 5. Nc3 {[%clk 0:03:01.6]}
5... a6 {[%clk 0:02:26.7]} 6. Bg5 {[%clk 0:03:02.3]} 6... e6 {[%clk 0:02:25.8]}
7. f4 {[%clk 0:03:02.5]} 7... Qb6 {[%clk 0:02:25.5]} 8. a3 {[%clk 0:02:59.8]}
8... Be7 {[%clk 0:02:21.6]} 9. Qd2 {[%clk 0:02:56.2]} 9... h6 {[%clk 0:02:18.3]}
10. Bxf6 {[%clk 0:02:50.6]} 10... Bxf6 {[%clk 0:02:18.1]} 11. O-O-O {[%clk
0:02:51.1]} 11... O-O {[%clk 0:02:14.5]} 12. g4 {[%clk 0:02:45.2]} 12... Nc6
{[%clk 0:02:10.8]} 13. Nb3 {[%clk 0:02:39.1]} 13... Bxc3 {[%clk 0:01:40.1]} 14.
Qxc3 {[%clk 0:02:37.2]} 14... e5 {[%clk 0:01:35.5]} 15. f5 {[%clk 0:02:30.9]}
15... Rd8 {[%clk 0:01:33.4]} 16. h4 {[%clk 0:02:25.5]} 16... a5 {[%clk
0:01:30.6]} 17. a4 {[%clk 0:02:20.4]} 17... Qb4 {[%clk 0:01:26.7]} 18. Qxb4
{[%clk 0:02:17.5]} 18... axb4 {[%clk 0:01:26.9]} 19. Bb5 {[%clk 0:02:14.5]}
19... Ne7 {[%clk 0:01:20]} 20. Rd3 {[%clk 0:01:49.6]} 20... d5 {[%clk
0:00:53.4]} 21. exd5 {[%clk 0:01:43]} 21... Rxd5 {[%clk 0:00:51.9]} 22. Rhd1
{[%clk 0:01:23.3]} 22... Rxd3 {[%clk 0:00:37.4]} 23. Rxd3 {[%clk 0:01:24.2]}
23... h5 {[%clk 0:00:34.8]} 24. Rd8+ {[%clk 0:01:12.6]} 24... Kh7 {[%clk
0:00:34.5]} 25. Bd3 {[%clk 0:01:03.4]} 25... f6 {[%clk 0:00:31.3]} 26. g5 {[%clk
0:00:58.7]} 26... Ng8 {[%clk 0:00:13.8]} 27. g6+ {[%clk 0:00:53.9]} 27... Kh8
{[%clk 0:00:12.2]} 28. Nc5 {[%clk 0:00:42]} 28... b6 {[%clk 0:00:10.1]} 29. Bc4
{[%clk 0:00:39.4]} 29... Be6 {[%clk 0:00:05.5]} 30. Nxe6 {[%clk 0:00:39.3]}
30... Rxd8 {[%clk 0:00:04.3]} 31. Nxd8 {[%clk 0:00:39.9]} 31... Ne7 {[%clk
0:00:02.1]} 32. Nf7+ {[%clk 0:00:37.8]} 1-0

[Event "Early-Titled-Tuesday-Blitz-February-20-2024"]
[Site "Chess.com"]
[Date "2024.02.20"]
[Round "8"]
[White "NewBornNow"]
[Black "Grischuk"]
[Result "1/2-1/2"]
[WhiteElo "2800"]
[BlackElo "3080"]
[TimeControl "180+1"]
[EndTime "9:30:13 PST"]
[Termination "Game drawn by repetition"]

1. e4 {[%clk 0:03:00.9]} 1... e5 {[%clk 0:03:00.6]} 2. Nf3 {[%clk 0:03:00.6]}
2... Nc6 {[%clk 0:03:01.4]} 3. Nc3 {[%clk 0:03:00.3]} 3... Nf6 {[%clk
0:03:01.2]} 4. Bb5 {[%clk 0:03:00.1]} 4... Nd4 {[%clk 0:02:58.8]} 5. Be2 {[%clk
0:02:53]} 5... d6 {[%clk 0:02:51.6]} 6. d3 {[%clk 0:02:52.4]} 6... c5 {[%clk
0:02:40.6]} 7. Bg5 {[%clk 0:02:47]} 7... Be7 {[%clk 0:02:36.5]} 8. Bxf6 {[%clk
0:02:41.6]} 8... Bxf6 {[%clk 0:02:37.4]} 9. Nxd4 {[%clk 0:02:39]} 9... cxd4
{[%clk 0:02:38.3]} 10. Nd5 {[%clk 0:02:38.7]} 10... Be6 {[%clk 0:02:37]} 11.
Nxf6+ {[%clk 0:02:32.6]} 11... Qxf6 {[%clk 0:02:37.9]} 12. O-O {[%clk 0:02:32]}
12... O-O {[%clk 0:02:35.4]} 13. Qd2 {[%clk 0:02:29.8]} 13... Rac8 {[%clk
0:02:33.3]} 14. c4 {[%clk 0:02:11.2]} 14... dxc3 {[%clk 0:02:34.2]} 15. bxc3
{[%clk 0:02:10.9]} 15... d5 {[%clk 0:02:34.8]} 16. Bf3 {[%clk 0:02:03.9]} 16...
Rfd8 {[%clk 0:02:34.5]} 17. Rfe1 {[%clk 0:01:52.8]} 17... h6 {[%clk 0:02:29]}
18. a4 {[%clk 0:01:38.7]} 18... dxe4 {[%clk 0:02:14.1]} 19. Bxe4 {[%clk
0:01:37.7]} 19... Bd5 {[%clk 0:02:14.7]} 20. h3 {[%clk 0:01:35.5]} 20... Qc6
{[%clk 0:02:12.6]} 21. Bxd5 {[%clk 0:01:30.5]} 21... Rxd5 {[%clk 0:02:04.7]} 22.
c4 {[%clk 0:01:23.1]} 22... Rc5 {[%clk 0:01:11.3]} 23. a5 {[%clk 0:01:19.8]}
23... Rd8 {[%clk 0:01:09.5]} 24. Qc3 {[%clk 0:01:16.1]} 24... f6 {[%clk
0:01:06.3]} 25. Rab1 {[%clk 0:01:11.7]} 25... Rd7 {[%clk 0:01:01.3]} 26. Rb3
{[%clk 0:01:10.5]} 26... Qc7 {[%clk 0:00:48.1]} 27. Reb1 {[%clk 0:01:02.7]}
27... Qxa5 {[%clk 0:00:46.2]} 28. Qxa5 {[%clk 0:01:00.2]} 28... Rxa5 {[%clk
0:00:47.1]} 29. Rxb7 {[%clk 0:00:59.5]} 29... Rxb7 {[%clk 0:00:43.3]} 30. Rxb7
{[%clk 0:00:58.4]} 30... Ra1+ {[%clk 0:00:40]} 31. Kh2 {[%clk 0:00:57.7]} 31...
a5 {[%clk 0:00:38.8]} 32. Ra7 {[%clk 0:00:39.8]} 32... a4 {[%clk 0:00:35.9]} 33.
Kg3 {[%clk 0:00:37.5]} 33... Rd1 {[%clk 0:00:32.5]} 34. Rxa4 {[%clk 0:00:35.8]}
34... Rxd3+ {[%clk 0:00:33]} 35. f3 {[%clk 0:00:35.9]} 35... Kh7 {[%clk
0:00:28]} 36. Ra7 {[%clk 0:00:33.8]} 36... Rc3 {[%clk 0:00:28.1]} 37. Rc7 {[%clk
0:00:33.1]} 37... h5 {[%clk 0:00:25.1]} 38. h4 {[%clk 0:00:32.3]} 38... Kg6
{[%clk 0:00:24.7]} 39. Kf2 {[%clk 0:00:31.2]} 39... Rc2+ {[%clk 0:00:24.4]} 40.
Kg3 {[%clk 0:00:30]} 40... Rc3 {[%clk 0:00:23.9]} 41. Kf2 {[%clk 0:00:29.7]}
41... Rc2+ {[%clk 0:00:24.2]} 42. Kg3 {[%clk 0:00:29.7]} 42... Rc3 {[%clk
0:00:20.5]} 1/2-1/2